{"text_format":"1","workbook":"xlsx","n_sheets":4,"sheets":[" PLAN NABAVE-TTIP","Sheet1","UPUTE","LPT"],"not_rendered":{"charts":0,"images":3,"macros":1,"external_links":1,"defined_names":881,"comments":0,"pivot_tables":0},"unopened":[],"bounds":{"document_bytes":16777216,"sheet_cells":100000,"rows_first":2000,"rows_last":500,"rows_between":2000,"halvings":0,"cell_chars":16384,"cell_head_chars":4096},"cells_cut":0,"cells_raw":0,"read":"whole","date_system":"1900"}

{"sheet":" PLAN NABAVE-TTIP","index":0,"n_rows":89,"n_cols":26,"rows_kept":89,"cut":false,"hidden":false,"merged":[[1,16,1,21],[82,1,82,2],[63,3,65,3],[63,8,65,8],[65,1,65,2],[1,4,1,15],[61,0,61,3],[61,4,61,8],[1,1,1,3],[63,1,63,2],[64,1,64,2],[66,1,66,2],[4,4,4,7],[88,1,88,2],[84,1,84,2],[69,1,69,2],[70,1,70,2],[78,0,78,7],[86,1,86,2],[87,1,87,2],[81,1,81,2],[77,0,77,7],[73,1,73,2],[75,1,75,2],[76,1,76,2],[72,1,72,2],[74,0,74,7],[71,1,71,2],[68,1,68,2],[60,0,60,8],[63,0,65,0],[5,2,5,3],[83,1,83,2],[67,1,67,2]]}
[]
["RED","FAZA I  - PLAN NABAVE\nPodmjera 19.2. \"Provedba operacija unutar CLLD strategije\"\nM19 - LEADER (CLLD)\nODABRANI LAG\nPopuniti FAZA I - PLAN NABAVE prilikom podnošenja Zahtjeva za potporu na LAG Natječaj\n",null,null,"FAZA II   - TABLICA TROŠKOVA I IZRAČUNA POTPORE (TTIP) \nPodmjera 19.2. \"Provedba operacija unutar CLLD strategije\"\nM19 - LEADER (CLLD)\nAPPRRR",null,null,null,null,null,null,null,null,null,null,null,"FAZA III  - Zahtjev za isplatu   \n\"TABLICA TROŠKOVA I IZRAČUNA POTPORE\""]
[null,"Naziv prihvatljivog troška ","Naziv i opis predmeta nabave","Procijenjeni iznos nabave u kunama\n(s PDV-om ako je PDV prihvatljiv ili bez PDV-a ako nije prihvatljiv)","Naziva troška prema ponudi","Naziv ponuditelja","Datum odabrane  ponude","Broj odabrane ponude","Iznos troška u kunama\n(s PDV-om ako je PDV prihvatljiv ili bez PDV-a ako nije prihvatljiv)","STUPAC \"L\" HIDE!!!","Najviši iznos potpore po trošku prije primljene potpore iz drugih izvora za iste troškove i prije primjene fin. korekcije","Primljena/dodijeljena javna potpora iz drugih javnih izvora za pojedini trošak ","Najviši iznos potpore po trošku s uračunatim svim potporama iz drugih izvora za iste troškove prije primjene fin. korekcije","Stopa financijske korekcije ako je izrečena u ovoj fazi","Iznos financijske korekcije izračunat primjenom izrečene stope financijske korekcije korekcije ili izražen u apsolutnom iznosu","Iznos potpore po trošku s uračunatom financijskom korekcijom","Dobavljač/\nbr. Računa/\nKupoprodajni ugovor ","Jedinica mjere","Količina","Jedinična cijena ","Ukupna vrijednost po stavci (oprema/\nprihvatljivi izdaci)","Ukupna vrijednost po stavci (oprema/\nprihvatljivi izdaci\nu valuti )"]
[1,2,3,4,5,6,7,8,9,null,10,11,12,13,14,15]
["A","Ukupan iznos prihvatljivih troškova bez općih troškova i kupnje zemljišta/objekata radi realizacije projekta",null,{"$f":"SUM(D9:D45)","v":0},null,null,null,null,{"$f":"SUM(I7:I45)","v":0},null,null,null,null,null,null,{"$f":"SUM(P6:P44)","v":0},null,null,null,null,{"$f":"SUM(U7:U44)","v":0},{"$f":"SUM(V7:V44)","v":0}]
[null,"A) Sektor prerade i/ili marketinga i/ili izravne prodaje proizvoda","ODABERITE SEKTOR ULAGANJA U PADAJUĆEM\n IZBORNIKU LIJEVO!!!"]
[null,"Građenje"]
[]
[null,null,null,null,null,null,null,null,null,null,{"$f":"I9*$I$79","v":0},null,{"$f":"IF(K9+L9>I9*$I$77,K9-((K9+L9)-(I9*$I$77)),K9)","v":0},null,{"$f":"ROUND(M9*N9,2)","v":0},{"$f":"M9-O9","v":0}]
[null,null,null,null,null,null,null,null,null,null,{"$f":"I10*$I$79","v":0},null,{"$f":"IF(K10+L10>I10*$I$77,K10-((K10+L10)-(I10*$I$77)),K10)","v":0},null,{"$f":"ROUND(M10*N10,2)","v":0},{"$f":"M10-O10","v":0}]
[null,null,null,null,null,null,null,null,null,null,0,null,0,null,0,0]
[null,null,null,null,null,null,null,null,null,null,0,null,0,null,0,0]
[null,null,null,null,null,null,null,null,null,null,0,null,0,null,0,0]
[null,null,null,null,null,null,null,null,null,null,0,null,0,null,0,0]
[null,null,null,null,null,null,null,null,null,null,0,null,0,null,0,0]
[null,null,null,null,null,null,null,null,null,null,0,null,0,null,0,0]
[null,null,null,null,null,null,null,null,null,null,0,null,0,null,0,0]
[null,null,null,null,null,null,null,null,null,null,0,null,0,null,0,0]
[null,"Opremanje"]
[null,null,null,null,null,null,null,null,null,null,{"$f":"I20*$I$79","v":0},null,{"$f":"IF(K20+L20>I20*$I$77,K20-((K20+L20)-(I20*$I$77)),K20)","v":0},null,{"$f":"ROUND(M20*N20,2)","v":0},{"$f":"M20-O20","v":0}]
[null,null,null,null,null,null,null,null,null,null,{"$f":"I21*$I$79","v":0},null,{"$f":"IF(K21+L21>I21*$I$77,K21-((K21+L21)-(I21*$I$77)),K21)","v":0},null,{"$f":"ROUND(M21*N21,2)","v":0},0]
[null,null,null,null,null,null,null,null,null,null,0,null,0,null,0,0]
[null,null,null,null,null,null,null,null,null,null,0,null,0,null,0,0]
[null,null,null,null,null,null,null,null,null,null,0,null,0,null,0,0]
[null,null,null,null,null,null,null,null,null,null,0,null,0,null,0,0]
[null,null,null,null,null,null,null,null,null,null,0,null,0,null,0,0]
[null,null,null,null,null,null,null,null,null,null,0,null,0,null,0,0]
[null,null,null,null,null,null,null,null,null,null,0,null,0,null,0,0]
[null,null,null,null,null,null,null,null,null,null,0,null,0,null,0,0]
[null,"B) Ulaganje u kupnju novih gospodarskih vozila i plovila, strojeva i opreme \nNAPOMENA: Korisnik upisuje procijenjeni iznos nabave, dok LAG limitira isti na maksimalno procijenjeni iznos iz Priloga VI. Natječaja. "]
[null,null,null,null,null,null,null,null,null,null,{"$f":"I31*$I$79","v":0},null,{"$f":"IF(K31+L31>I31*$I$77,K31-((K31+L31)-(I31*$I$77)),K31)","v":0},null,{"$f":"ROUND(M31*N31,2)","v":0},{"$f":"M31-O31","v":0}]
[null,null,null,null,null,null,null,null,null,null,{"$f":"I32*$I$79","v":0},null,{"$f":"IF(K32+L32>I32*$I$77,K32-((K32+L32)-(I32*$I$77)),K32)","v":0},null,{"$f":"ROUND(M32*N32,2)","v":0},0]
[null,null,null,null,null,null,null,null,null,null,{"$f":"I33*$I$79","v":0},null,{"$f":"IF(K33+L33>I33*$I$77,K33-((K33+L33)-(I33*$I$77)),K33)","v":0},null,{"$f":"ROUND(M33*N33,2)","v":0},0]
[]
[null,"C) Ulaganje u kupnju nove poljoprivredne mehanizacije\nNAPOMENA: Poljoprivredna mehanizacija su svi poljoprivredni pogonski i kombinirani strojevi (uključujući sve samostalne i/ili priključne strojeve, uređaje, oruđa i alate), oprema, vozila, transportna sredstva bez vlastitog pogona te drugi radni strojevi vezani uz pružanje dopunske djelatnosti u poljoprivredi, šumarstvu, komunalnim, građevinskim poslovioma poljoprivrednom mehanizacijom i dr."]
[null,null,null,null,null,null,null,null,null,null,{"$f":"I36*$I$79","v":0},null,{"$f":"IF(K36+L36>I36*$I$77,K36-((K36+L36)-(I36*$I$77)),K36)","v":0},null,{"$f":"ROUND(M36*N36,2)","v":0},{"$f":"M36-O36","v":0}]
[null,null,null,null,null,null,null,null,null,null,{"$f":"I37*$I$79","v":0},null,{"$f":"IF(K37+L37>I37*$I$77,K37-((K37+L37)-(I37*$I$77)),K37)","v":0},null,{"$f":"ROUND(M37*N37,2)","v":0},0,null,null,null,null,null,null,null,null,null,{"$f":"I36*I78","v":0}]
[null,null,null,null,null,null,null,null,null,null,0,null,0,null,{"$f":"ROUND(M38*N38,2)","v":0},0]
[null,"D) Kupnja živih životinja u svrhu obavljanja usluga u ruralnim područjima"]
[null,null,null,null,null,null,null,null,null,null,{"$f":"I40*$I$79","v":0},null,{"$f":"IF(K40+L40>I40*$I$77,K40-((K40+L40)-(I40*$I$77)),K40)","v":0},null,{"$f":"ROUND(M40*N40,2)","v":0},{"$f":"M40-O40","v":0}]
[null,null,null,null,null,null,null,null,null,null,{"$f":"I41*$I$79","v":0},null,{"$f":"IF(K41+L41>I41*$I$77,K41-((K41+L41)-(I41*$I$77)),K41)","v":0},null,{"$f":"ROUND(M41*N41,2)","v":0},{"$f":"M41-O41","v":0}]
[null,null,null,null,null,null,null,null,null,null,0,null,{"$f":"IF(K42+L42>I42*$I$77,K42-((K42+L42)-(I42*$I$77)),K42)","v":0},null,0,0]
[null,"E) Hardware i software koji omogućuje vođenje proizvodnih procesa te  izrada mrežne stranice u svrhu informiranja i promidžbe djelatnosti povezane s projektom"]
[null,null,null,null,null,null,null,null,null,null,{"$f":"I44*$I$79","v":0},null,{"$f":"IF(K44+L44>I44*$I$77,K44-((K44+L44)-(I44*$I$77)),K44)","v":0},null,{"$f":"ROUND(M44*N44,2)","v":0},{"$f":"M44-O44","v":0}]
[null,null,null,null,null,null,null,null,null,null,{"$f":"I45*$I$79","v":0},null,{"$f":"IF(K45+L45>I45*$I$77,K45-((K45+L45)-(I45*$I$77)),K45)","v":0},null,{"$f":"ROUND(M45*N45,2)","v":0},{"$f":"M45-O45","v":0}]
["B","Kupnja zemljišta i objekata radi realizacije projekta, do 10% vrijednosti ukupno prihvatljivih troškova projekta (bez općih troškova), ako se ulaganje provodi sukladno važećim propisima kojima se uređuje gradnja, uz mogućnost kupnje prije podnošenja prijave projekta, ali ne prije 1. siječnja 2014. godine",null,{"$f":"SUM(D47:D48)","v":0},null,null,null,null,{"$f":"SUM(I47:I48)","v":0},null,null,null,null,null,null,{"$f":"IF(I5*0.1*I77<SUM(P47:P48),I5*0.1*I77,SUM(P47:P48))","v":0},null,null,null,null,{"$f":"SUM(U47:U48)","v":0},{"$f":"SUM(V47:V48)","v":0}]
[null,null,null,null,null,null,null,null,null,{"$f":"IF(SUM(I$47:I$48)>I$67,I47/(SUM(I$47:I$48))*$I$67,I47)","v":0},{"$f":"IFERROR(J47*$I$79,0)","v":0},0,{"$f":"IF(K47+L47>I47*$I$77,K47-((K47+L47)-(I47*$I$77)),K47)","v":0},0,{"$f":"ROUND(M47*N47,2)","v":0},{"$f":"M47-O47","v":0}]
[null,null,null,null,null,null,null,null,null,{"$f":"IF(SUM(I$47:I$48)>I$67,I48/(SUM(I$47:I$48))*$I$67,I48)","v":0},{"$f":"IFERROR(J48*$I$79,0)","v":0},0,{"$f":"IF(K48+L48>I48*$I$77,K48-((K48+L48)-(I48*$I$77)),K48)","v":0},0,{"$f":"ROUND(M48*N48,2)","v":0},0]
["C","Troškovi pripreme poslovnog plana",null,{"$f":"SUM(D50:D51)","v":0},null,null,null,null,{"$f":"SUM(I50:I51)","v":0},null,null,null,null,null,null,{"$f":"SUM(P50:P51)","v":0},null,null,null,null,{"$f":"SUM(U50:U51)","v":0},{"$f":"SUM(V50:V51)","v":0}]
[null,null,null,null,null,null,null,null,null,{"$f":"IF(SUM(I$50:I$51)>I$70,I50/(SUM(I$50:I$51))*I$70,I50)","v":0},{"$f":"IFERROR(J50*$I$79,0)","v":0},0,{"$f":"IF(K50+L50>I50*$I$77,K50-((K50+L50)-(I50*$I$77)),K50)","v":0},0,{"$f":"ROUND(M50*N50,2)","v":0},0]
[null,null,null,null,null,null,null,null,null,{"$f":"IF(SUM(I$50:I$51)>I$70,I51/(SUM(I$50:I$51))*I$70,I51)","v":0},{"$f":"IFERROR(J51*$I$79,0)","v":0},0,{"$f":"IF(K51+L51>I51*$I$77,K51-((K51+L51)-(I51*$I$77)),K51)","v":0},0,{"$f":"ROUND(M51*N51,2)","v":0},0]
["D","Troškovi pripreme dokumentacije",null,{"$f":"SUM(D53:D54)","v":0},null,null,null,null,{"$f":"SUM(I53:I54)","v":0},null,null,null,null,null,null,{"$f":"SUM(P53:P54)","v":0},null,null,null,null,{"$f":"SUM(U53:U54)","v":0},{"$f":"SUM(V53:V54)","v":0}]
[null,null,null,null,null,null,null,null,null,{"$f":"IF(SUM(I$53:I$54)>I$71,I53/(SUM(I$53:I$54))*I$71,I53)","v":0},{"$f":"IFERROR(J53*$I$79,0)","v":0},0,{"$f":"IF(K53+L53>I53*$I$77,K53-((K53+L53)-(I53*$I$77)),K53)","v":0},0,{"$f":"ROUND(M53*N53,2)","v":0},0]
[null,null,null,null,null,null,null,null,null,{"$f":"IF(SUM(I$53:I$54)>I$71,I54/(SUM(I$53:I$54))*I$71,I54)","v":0},{"$f":"IFERROR(J54*$I$79,0)","v":0},0,{"$f":"IF(K54+L54>I54*$I$77,K54-((K54+L54)-(I54*$I$77)),K54)","v":0},0,{"$f":"ROUND(M54*N54,2)","v":0},0]
["E","Troškovi  projektno - tehničke dokumentacije, geodetskih podloga, elaborata i trošak nadzora ",null,{"$f":"SUM(D56:D57)","v":0},null,null,null,null,{"$f":"SUM(I56:I57)","v":0},null,null,null,null,null,null,{"$f":"SUM(P56:P57)","v":0},null,null,null,null,{"$f":"SUM(U56:U57)","v":0},{"$f":"SUM(V56:V57)","v":0}]
[null,null,null,null,null,null,null,null,null,{"$f":"IF(SUM(I$56:I$57)>I$72,I56/(SUM(I$56:I$57))*I$72,I56)","v":0},{"$f":"IFERROR(J56*$I$79,0)","v":0},0,{"$f":"IF(K56+L56>I56*$I$77,K56-((K56+L56)-(I56*$I$77)),K56)","v":0},0,{"$f":"ROUND(M56*N56,2)","v":0},0]
[null,null,null,null,null,null,null,null,0,{"$f":"IF(SUM(I$56:I$57)>I$72,I57/(SUM(I$56:I$57))*I$72,I57)","v":0},{"$f":"IFERROR(J57*$I$79,0)","v":0},0,{"$f":"IF(K57+L57>I57*$I$77,K57-((K57+L57)-(I57*$I$77)),K57)","v":0},0,{"$f":"ROUND(M57*N57,2)","v":0},0]
["F","Ukupni iznos neprihvatljivih troškova \n(Pojašnjenje: Troškovi koji se ne nalaze na listi prihvatljivih troškova i/ili koji se nalaze, ali nisu prihvatljivi)",null,{"$f":"SUM(D59:D60)","v":0},null,null,null,null,{"$f":"SUM(I59:I60)","v":0},null,null,null,null,null,null,null,null,null,null,null,{"$f":"SUM(U59:U60)","v":0},{"$f":"SUM(V59:V60)","v":0}]
[null,null,null,null,null,null,null,null,null,null,null,0]
[null,null,null,null,null,null,null,null,null,null,null,0]
["NAPOMENA: "]
["FAZA I - PLAN NABAVE ",null,null,null,"FAZA II - TABLICA TROŠKOVA I IZRAČUNA POTPORE"]
[]
["H","TEČAJ UTVRĐEN OD EUROPSKE KOMISIJE ZA 1. SIJEČNJA GODINE U KOJOJ SE DONOSI ODLUKA \nPojašnjenje: \n- Nositelj projekta upisuje tečaj koji je Europska središnja banka odredila prije 1. siječnja godine u kojoj se podnosi prijava projekta\n- Agencija za plaćanja upisuje tečaj  koji je Europska središnja banka odredila prije 1. siječnja godine u kojoj je donesena Odluka\n- Web adresa za preuzimanje tečaja:",null,7.5518999999999998,null,null,null,null,7.5518999999999998]
[null,"Tečajna lista - ECB"]
[null,"OBAVEZAN UNOS !!!"]
["I","NAJVIŠI IZNOS TROŠKOVA KUPNJE POLJOPRIVREDNOG ZEMLJIŠTA I  OBJEKATA (do 10% od ukupnog iznosa prihvatljivih troškova bez općih troškova)\nPojašnjenje:   Red A * 10% ",null,{"$f":"D5*0.1","v":0},null,null,null,null,{"$f":"I5*0.1","v":0}]
["J","UKUPAN IZNOS PRIHVATLJIVIH TROŠKOVA BEZ OPĆIH TROŠKOVA                                                                                                                                                                                                                                                                              \nPojašnjenje: Red A  +  (manji od redova  I  ili  B) ",null,{"$f":"MIN(D67, (IF(D46 =\"\", 0, D46)))+D5","v":0},null,null,null,null,{"$f":"MIN(I67, (IF(I46 =\"\", 0, I46)))+I5","v":0}]
["K","POSTOTAK  PRIHVATLJIVIH TROŠKOVA BEZ OPĆIH TROŠKOVA  U FAZI II  U ODNOSU NA PRIHVATLJIVE TROŠKOVE BEZ OPĆIH TROŠKOVA PRIJAVLJENE U FAZI I\nPojašnjenje: Podatak za potrebe utvrđivanja potencijalne financijske korekcije ",null,null,null,null,null,null,{"$f":"IFERROR(I68/D68,0)","v":0}]
["L","PRIHVATLJIVI IZNOS TROŠKOVA PRIPREME POSLOVNOG PLANA\nPojašnjenje: Red C, ali ne veći od 2% iznosa iz reda J ",null,{"$f":"IF((IF((37500)>D49, D49, (37500)))>(D68*0.02), (D68*0.02),(IF((37500)>D49, D49, (37500))))","v":0},null,null,null,null,{"$f":"IF((IF((37500)>I49, I49, (37500)))>(I68*0.02), (I68*0.02),(IF((37500)>I49, I49, (37500))))","v":0}]
["M","PRIHVATLJIVI IZNOS TROŠKOVA PRIPREME DOKUMENTACIJE \nPojašnjenje: Red D, ali ne veći od 2% iznosa iz reda J ",null,{"$f":"IF((IF((75000)>D52, D52, (75000)))>(D68*0.02), (D68*0.02),(IF((75000)>D52, D52, (75000))))","v":0},null,null,null,null,{"$f":"IF((IF((75000)>I52, I52, (75000)))>(I68*0.02), (I68*0.02),(IF((75000)>I52, I52, (75000))))","v":0}]
["N","PRIHVATLJIVI IZNOS TROŠKOVA PRIPREME PROJEKTNO - TEHNIČKE DOKUMENTACIJE, GEODETSKIH USLUGA, ELABORATA I  NADZORA    \nPojašnjenje: Red E, ali ne veći od (10%* Red J)  -  (Red L  + Red M)                                                 ",null,{"$f":"IF(((D68*0.1)-D70-D71)>D55, D55,((D68*0.1)-D70-D71))","v":0},null,null,null,null,{"$f":"IF(((I68*0.1)-I70-I71)>I55, I55,((I68*0.1)-I70-I71))","v":0}]
["O","UKUPAN IZNOS PRIHVATLJIVIH OPĆIH TROŠKOVA\nPojašnjenje: Zbroj iznosa iz redova L, M i N",null,{"$f":"D70+D71+D72","v":0},null,null,null,null,{"$f":"I70+I71+I72","v":0}]
["P","UKUPNI IZNOS PRIHVATLJIVOG ULAGANJA\nPojašnjenje: Zbrojiti iznose iz redova J i O",null,{"$f":"D68+D73","v":0},null,null,null,null,{"$f":"I68+I73","v":0}]
["HIDE \"102\"",null,null,null,null,null,null,null,{"$f":"IF(MIN((I74*I77),I80)>I81,MIN((I74*I77),I80),0)","v":0},"HIDE!!!!"]
["Q","IZNOS PRIMLJENE DRŽAVNE (JAVNE) POTPORE ZA ISTE TROŠKOVE\nPojašnjenje: Ukoliko je nositelj projekta u prijavi projekta (u AGRONET-u) upisao iznos primljene državne (javne) potpore za iste troškove, \nukupan iznos istih je potrebno upisati u ovaj red",null,null,null,null,null,null,0]
["R","INTENZITET POTPORE \nPojašnjenje: 70% od ukupnih prihvatljivih troškova projekta (iz LAG Natječaja upisati intenzitet potpore)",null,0.7,null,null,null,null,{"$f":"D77","v":0.7}]
["HIDE \"105\"",null,null,null,null,null,null,null,{"$f":"IFERROR((IF(MIN(D84,I75)<I80,MIN(D84,I80)/I74,I80/I74)),0)","v":0},"HIDE \"105\"!!!!"]
["HIDE \"106\"",null,null,null,null,null,null,null,{"$f":"IF(I78>I77,I77,I78)","v":0},"HIDE \"105\"!!!!"]
["V","NAJVIŠI IZNOS POTPORE\nPojašnjenje:\nNajviši iznos potpore je [30.000] [iz LAG Natječaja upisati najviši iznos potpore] \nPojašnjenje: Najviši iznos javne potpore po projektu ne može biti viši od gore navedenog iznosa. \nPreračun u kune se vrši sukladno tečaju navedenom u redu H.",30000,{"$f":"ROUND(D64*C80,2)","v":226557},null,null,null,null,{"$f":"C80*I64","v":226557}]
["W","NAJNIŽI IZNOS  POTPORE \nPojašnjenje:\nNajniži iznos potpore je [4.000 EUR] [iz LAG Natječaja upisati najviši iznos potporei]\nPreračunati u kune nsukladno tečaju iz reda H.",4000,{"$f":"ROUND(C81*D64,2)","v":30207.599999999999},null,null,null,null,{"$f":"C81*I64","v":30207.599999999999}]
["X","IZNOS POTPORE ZA DODJELU PRIJE DEMINIMIS POTPORE\nPojašnjenje: \nIznos potpore za dodjelu  = (Red P * Red R)   -   Red Q, ali \n- ne veći odi od iznosa iz reda V, i\n- ne manji od iznosa iz reda W\n\nIznos potpore za dodjelu u fazi II ne može biti veći od iznosa dodijeljenog u fazi I.",null,{"$f":"ROUND((IF((IF(D81>((D74*D77)-D76),0,((D74*D77)-D76)))>D80, D80, (IF(D81>((D74*D77)-D76),0,((D74*D77)-D76))))), 2)","v":0},null,null,null,null,{"$f":"MIN(D82,I80,SUM(P5+P46+P49+P52+P55))","v":0}]
["Y","IZNOS ZAPRIMLJENE POTPORE MALE VRIJEDNOSTI (DE MINIMIS POTPORE)\nPojašnjenje: \nUpisati ukupni iznos zaprimljene potpore male vrijednosti (de minimis potpore) za poduzetnika (korisnika i svakog povezanog poduzeća) iz Izjave  o korištenim potporama male vrijednosti.\nAko su korisnik i svako povezano poduzeće u učitanoj Izjavi izjavili da nisu primili de minimis potporu u tekućoj i prethodne dvije fiskalne godine upisati \"0\".",null,0]
["Z","IZNOS POTPORE ZA DODJELU POSLIJE DEMINIMIS POTPORE",null,{"$f":"IF((200000*D64)-D83<D82,(200000*D64)-D83,D82)","v":0},null,null,null,null,{"$f":"IF((200000*I64)-I83<I82,(200000*I64)-I83,I82)","v":0}]
["AA","IZNOS POTPORE ZA DODJELU NAKON FINANCIJSKE KOREKCIJE (ako je primjenjivo)\nPojašnjenje: Ukoliko je postotak u redu K niži od 80%, tada se iznos potpore u fazi II umanjuje za 5%:   \nRed Z  -  (Red Z * 0,05)  ",null,null,null,null,null,null,{"$f":"I82-IFERROR(ROUND((IF(I69<80%, I82*0.05)), 2),0)","v":0}]
["AB","UKUPAN IZNOS PROJEKTA \nPojašnjenje: Zbroj iznosa iz redova A, B, C, D, E, F.\nProjekt ne smije biti veći od [250.000] EUR (s PDV-om)\nPreračun u kune se vrši sukladno tečaju navedenom u redu H.",250000,{"$f":"ROUND((D5+D46+D49+D52+D55+D58), 2)","v":0},null,null,null,null,{"$f":"ROUND((I5+I46+I49+I52+I55+I58), 2)","v":0}]
["AC","IZNOS VLASTITIH SREDSTAVA\nPojašnjenje: Ukupan iznos projekta umanjen za iznos potpore. ",null,{"$f":"D86-D84","v":0},null,null,null,null,{"$f":"I86-I85","v":0}]
["AD","IZNOS POTPORE IZ PRORAČUNA EU\nPojašnjenje: Iznos potpore * 90%",null,{"$f":"ROUND((D84*0.9), 2)","v":0},null,null,null,null,{"$f":"ROUND((I85*0.9), 2)","v":0}]
["AE","IZNOS POTPORE IZ PROPRAČUNA REPUBLIKE HRAVATSKE\nPojašnjenje: Iznos potpore - Red AD",null,{"$f":"D84-D88","v":0},null,null,null,null,{"$f":"I85-I88","v":0}]

{"sheet":"Sheet1","index":1,"n_rows":10,"n_cols":2,"rows_kept":10,"cut":false,"hidden":false,"merged":[]}
[]
[]
[]
[null,"A) Sektor prerade i/ili marketinga i/ili izravne prodaje proizvoda"]
[null,"A) Sektor usluga u poljoprivrednim/ šumarskim djelatnostima"]
[null,"A) Sektor usluga u veterinarskim djelatnostima"]
[null,"A) Sektor usluga u društvenim djelatnostima"]
[null,"A) Sektor usluga u intelektualnim djelatnostima"]
[null,"A) Sektor tradicijskih i umjetničkih obrta"]
[null,"A) Sektor turizma u ruralnom području"]

{"sheet":"UPUTE","index":2,"n_rows":27,"n_cols":20,"rows_kept":27,"cut":false,"hidden":true,"merged":[[24,0,24,10],[25,0,25,10],[26,0,26,10],[18,0,18,10],[19,0,19,10],[20,0,20,10],[21,0,21,10],[22,0,22,10],[23,0,23,10],[17,0,17,10],[0,0,0,10],[1,0,1,10],[2,1,15,2],[5,5,14,9],[16,0,16,10]]}
["UPUTE",null,null,null,null,null,null,null,null,null,null,null,"Slika 1."]
["Nakon otvaranja obrasca potrebno je kliknuti \"Enable Content\" (Slika 1) kako bi obrazac ispravno funkcionirao"]
[null,"LEGENDA:"]
[null,null,null,null,null,"* bijela polja su namijenjena popunjavanju"]
[]
[null,null,null,null,null,"* polja obojana drugim bojama su zaključana i nisu namjenjena popunjavanju"]
[]
[]
[]
[]
[]
[]
[]
[]
[]
[]
["Faza I - Odabrani LAG"]
["Ispunjavaju se kolone od B do I",null,null,null,null,null,null,null,null,null,null,null,"Slika 2.",null,null,null,null,null,null,"Slika 3."]
["Umetanje novih redova je omogućeno pomoću funkcije \"Copy\" i \"Insert Copied Cells\" odnosno na način kako je prikazan na Slici 2. i Slici 3."]
["Umetanje redova se obavlja prema potrebi, a ovisno o broju planiranih nabava."]
["Nije dozvoljeno korištenje funkcije \"Cut\" ili \"Izreži\". Ukoliko se isti upotrijebi postoji mogućnost da izračuni i formule neće biti funkcionalni te je potrebno preuzeti novi obrazac i ponovno ga ispuniti"]
["Prilikom upisa naziva predmeta nabave, opisa predmeta nabave te procijenjenog iznosa nabave, ukoliko je primjenjivo, potrebno je koristiti informacije iz relevantnih izvora (projektna dokumentacija, troškovnici, akt o građenju i slično)."]
["Faza II - Agencija za plaćanja"]
["Ispunjava se obrazac \"Plan nabave-TTIP\" koji je zaprimljen kao prilog Odluke o rezultatu administrativne kontrole (izdane putem AGRONET-a). U svrhu podnošenja drugog dijela zahtjeva za potporu popunjavaju se kolone od J do O"]
["Kod ulaganja u izgradnju/rekonstrukciju potrebno je popuniti Tablicu troškova i izračuna potpore u Fazi II  prema grupama radova/ rekapitulaciji troškovnika iz Glavnog projekta (nije potrebno navoditi radove po stavkama). Ukoliko se nabavlja poljoprivredne mehanizacija, uz podatke o osnovnom stroju potrebno je navesti i priključke odnosno pakete dodatne opreme."]
["Faza III - Agencija za plaćanja"]
["Ispunjavaju se kolone od P do U"]

{"sheet":"LPT","index":3,"n_rows":181,"n_cols":2,"rows_kept":181,"cut":false,"hidden":true,"merged":[[73,1,73,2],[74,1,74,2],[77,1,77,2],[0,0,0,2],[1,0,1,2],[2,0,2,2],[4,0,4,2],[5,1,5,2],[6,1,6,2],[18,1,18,2],[173,1,173,2],[175,1,175,2],[177,1,177,2],[126,1,126,2],[120,1,120,2],[121,1,121,2],[132,1,132,2],[139,1,139,2],[159,1,159,2],[101,1,101,2],[106,1,106,2],[93,1,93,2],[94,1,94,2],[97,1,97,2],[100,1,100,2]]}
[" LISTA PRIHVATLJIVIH TROŠKOVA ZA TIP OPERACIJE"]
["[upisati naziv tipa operacije iz LRS koji je sukladan tipu operacije 4.1.1.]"]
["Svi navedeni troškovi unutar Liste prihvatljivih troškova uključuju i troškove za pripadajući hardware i software koji omogućuje vođenje proizvodnih procesa"]
["Kod troška","Naziv prihvatljivih troškova"]
["Ulaganje u građenje/rekonstrukciju i/ili opremanje:"]
["1.","Objekata za životinje uključujući vanjsku i unutarnju infrastrukturu u sklopu poljoprivrednog gospodarstva"]
["1.1","Građenje/rekonstrukcija "]
["1.1.1","- objekata za držanje muznih krava, mliječnih ovaca i koza, uključujući prostore za čekalište, za pranje, za mužnju, za laktofriz, za ispust, za osjemenjivanje, za hlađenje i neškodljivo uklanjanje lešina, za pregled i liječenje životinja, za tretman životinja protiv zaraznih bolesti, za karantenu, za držanje teladi, junica, janjadi, jaradi, šilježadi, za instalaciju opreme za ventilaciju, klimatizaciju, grijanje, popratne energetske objekte, uključujući građenje vodovodne (uključujući bunare), plinske, električne (uključujući prostor za upotrebu agregata) hidrantske (s potrebnom opremom) i kanalizacijske mreže, gromobranske instalacije, mosne vage, ograda oko farme, dezinfekcijske barijere, objekti za skladištenje i pripremu hrane (s pripadajućom opremom) za skladištenje opreme, proizvoda i stelje, za dnevni odmor radnika uz sanitarni prostor, za potrebe veterinarske službe, za uredski prostor,  prostor za privremeno odlaganje otpada, mreže putova i uređenje okoliša unutar farme"]
["1.1.2","- objekata: za tov goveda i držanje krava dojilja, za neškodljivo uklanjanje lešina, za prisilno klanje životinja, za tretman životinja protiv zaraznih bolesti, za držanje teladi i junadi, za ispuste, za osjemenjivanje, za skladištenje opreme, životinjskih proizvoda, repromaterijala, rezervnih dijelova i stelje, za instalaciju opreme za ventilaciju, klimatizaciju, grijanje, popratne energetske objekte uključujući građenje vodovodne (uključujući bunare), plinske, električne (uključujući prostor za upotrebu agregata) hidrantske (s pripadajućom opremom) i kanalizacijske mreže, gromobranske instalacije, mosne vage, ograda oko farme, dezinfekcijske barijere,  za skladištenje i pripremu hrane (s pripadajućom opremom), za dnevni odmor radnika uz sanitarni prostor, za potrebe veterinarske službe, za uredski prostor, prostor za privremeno odlaganje otpada, mreže putova i uređenje okoliša unutar farme"]
["1.1.3","- objekata: za držanje krmača i/ili tovljenika svinja, uključujući odvojene prostore za osjemenjivanje, za čekalište, za prasilište, za odgajalište, za tovilište, za ispuste, za neraste i krmače, za nazimice, za neškodljivo uklanjanje lešina, za prisilno klanje, za karantenu, za skladištenje opreme, životinjskih proizvoda, repromaterijala, rezervnih dijelova i stelje, za instalaciju opreme za ventilaciju, klimatizaciju, grijanje, popratne energetske objekte, uključujući građenje vodovodne (uključujući bunare), plinske, električne (uključujući prostor za upotrebu agregata) i kanalizacijske mreže,  gromobranske instalacije, mosne vage, ograda oko farme, dezinfekcijske barijere, za skladištenje i pripremu hrane (s pripadajućom opremom), za dnevni odmor radnika uz sanitarni prostor, za potrebe veterinarske službe, za uredski prostor, prostor za privremeno odlaganje otpada,  mreže putova i uređenje okoliša unutar farme"]
["1.1.4","- objekata: za držanje konja, magaraca, mula i mazgi, za prisilno klanje životinja, za tretman životinja protiv zaraznih bolesti za neškodljivo uklanjanje lešina, za držanje pomlatka, za ispuste, za skladištenje opreme, za skladištenje životinjskih proizvoda, repromaterijala, rezervnih dijelova i stelje, za instalaciju opreme za ventilaciju, klimatizaciju, grijanje, popratne energetske objekte, uključujući građenje vodovodne (uključujući bunare), plinske, električne (uključujući prostor za upotrebu agregata) hidrantske i kanalizacijske mreže, gromobranske instalacije, mosne vage, ograda oko farme, dezinfekcijske barijere, za skladištenje i pripremu hrane (s pripadajućom opremom), za dnevni odmor radnika uz sanitarni prostor, za potrebe veterinarske službe, za uredski prostor, prostor za privremeno odlaganje otpada, mreže putova i uređenje okoliša unutar farme"]
["1.1.5","- objekata za držanje ovaca i koza, prostora za karantenu, za prisilno klanje, za janjenje/jarenje, za neškodljivo uklanjanje lešina, za držanje janjadi i jaradi, za skladištenje opreme, za skladištenje životinjskih proizvoda, repromaterijala, rezervnih dijelova  i stelje, prostora za instalaciju opreme za ventilaciju, klimatizaciju, grijanje, popratne energetske objekte, uključujući građenje vodovodne (uključujući bunare), plinske, električne (uključujući prostor za upotrebu agregata) i kanalizacijske mreže, mosne vage, za dnevni odmor radnika uz sanitarni prostor, za uredski prostor, za potrebe veterinarske službe, prostor za privremeno odlaganje otpada, mreže putova i uređenje okoliša unutar farme"]
["1.1.6","- objekata: za držanje i tov peradi, za prisilno klanje životinja, za tretman životinja protiv zaraznih bolesti, za neškodljivo uklanjanje lešina, za rashladni uređaj, za privremeno skladištenje lešina na farmi,  za skladištenje životinjskih proizvoda, repromaterijala, rezervnih dijelova i stelje, za instalaciju tehnološke opreme, opreme za ventilaciju, klimatizaciju, grijanje, popratne energetske objekte, uključujući građenje vodovodne (uključujući bunare), plinske, električne (uključujući prostor za upotrebu agregata) i hidrantske i kanalizacijske mreže, gromobranske instalacije, mosne vage, ograda oko farme, dezinfekcijske barijere, za skladištenje i pripremu hrane (s pripadajućom opremom), za dnevni odmor radnika uz sanitarni prostor, za uredski prostor, za potrebe veterinarske službe, prostor za privremeno odlaganje otpada,  reže putova i uređenje okoliša unutar farme"]
["1.1.7","- objekata: za držanje kokoši nesilica i/ili uzgoj pilenki, za tretman životinja protiv zaraznih bolesti za neškodljivo uklanjanje lešina, za rashladni uređaj, za privremeno skladištenje lešina na farmi, ispusta, za skladištenje životinjskih proizvoda, repromaterijala, rezervnih dijelova i stelje za instalaciju opreme, za ventilaciju, klimatizaciju, grijanje, popratne energetske objekte, uključujući građenje vodovodne (uključujući bunare), plinske, električne (uključujući prostor za upotrebu agregata) i hidrantske i kanalizacijske mreže, gromobranske instalacije, mosne vage, ograda oko farme, dezinfekcijske barijere, za objekti za skladištenje i pripremu hrane (s pripadajućom opremom) te pratećih objekata za proizvodnju i skladištenje jaja (poput postrojenja za hlađenje ili pakiranje, za dnevni odmor radnika uz sanitarni prostor, za uredski prostor, za potrebe veterinarske službe,  prostor za privremeno odlaganje otpada, mreže putova i uređenje okoliša unutar farme"]
["1.1.8","- objekata: za valenje jednodnevnih pilića  (JDP),  za neškodljivo uklanjanje lešina, za ispust, za instalaciju opreme za ventilaciju, klimatizaciju, grijanje, popratne energetske objekte, uključujući građenje vodovodne (uključujući bunare), plinske, električne (uključujući upotrebu agregata) i hidrantske i kanalizacijske mreže, gromobranske instalacije mosne vage, ograda oko farme, dezinfekcijske barijere, za skladištenje i pripremu hrane (s pripadajućom opremom), za dnevni odmor radnika uz sanitarni prostor, za potrebe veterinarske službe, prostor za privremeno odlaganje otpada, za uredski prostor, mreže putova i uređenje okoliša unutar farme"]
["1.1.9","- ZA OSTALE ŽIVOTINJE objekata: za držanje, prostora za ispust, neškodljivo uklanjanje lešina, za skladištenje opreme, životinjskih proizvoda i stelje, za instalaciju opreme za ventilaciju, klimatizaciju, grijanje, popratne energetske objekte, uključujući građenje vodovodne (uključujući bunare), plinske, električne (uključujući prostor za upotrebu agregata) i hidrantske i kanalizacijske mreže, gromobranske instalacije mosne vage, ograda oko farme, dezinfekcijske barijere, za skladištenje i pripremu hrane (s pripadajućom opremom),  za dnevni odmor radnika uz sanitarni prostor, za uredski prostor, za potrebe veterinarske službe, prostor za privremeno odlaganje otpada, mreže putova i uređenje okoliša unutar farme"]
["1.1.10","- fiksne ograde za travnjake (torovi)"]
["1.1.11","- ostali nespomenuti objekti"]
["1.2","Oprema"]
["1.2.1","- izmuzišta za strojnu mužnju, uključujući i pokretne muzne jedinice, robot za mužnju (sa svim elementima, materijalom i montažom)"]
["1.2.2","- mljekovodi i oprema za hlađenje i skladištenje mlijeka na poljoprivrednom gospodarstvu/farmi"]
["1.2.3","- strojevi i oprema za spremanje voluminozne krme, hranjenje i napajanje životinja (mlinovi i mješaonice za pripremu koncentrata, oprema i dozatori za krmne koncentrate, izuzimači, transporteri, prikolice, mikser prikolice i samohodne mikser prikolice i dozatori za kabastu krmu,  traktori, utovarivači s potrebnim priključcima, hranilice, pojilice, balirke, ovijači bala i silokombajni, distributeri slame,  i dr.)"]
["1.2.4","- oprema za izgnojavanje"]
["1.2.5","- podne rešetke, gume i madraci"]
["1.2.6","- mobilne naftne pumpe s opremom"]
["1.2.7","- stojnice za tretman papaka i sav pribor za tretman papaka"]
["1.2.8","- strojevi i oprema za pripremu i transport stelje"]
["1.2.9","- stočna vaga, rampa za utovar/istovar životinja, lijevci (korali) za usmjeravanje, hvatanje i sortiranje stoke"]
["1.2.10","- oprema za označavanje životinja i vođenje evidencije"]
["1.2.11","- oprema za stajališta, boksove i vezove za stoku"]
["1.2.12","- zavjese za zatvaranje prolaza u staju"]
["1.2.13","- oprema za pregrađivanje prostora u staji"]
["1.2.14","- oprema za teljenje, janjenje i jarenje, te oprema za prihvat i držanje podmlatka (boksovi)"]
["1.2.15","- sistemi za kišenje – oročavanje za vrijeme velikih ljetnih vrućina"]
["1.2.16","- četke za samočišćenje stoke"]
["1.2.17","- oprema za čišćenje i dezinfekciju objekata i opreme"]
["1.2.18","- oprema za neškodljivo uklanjanje lešina"]
["1.2.19","- oprema za sprečavanje širenja i suzbijanje bolesti"]
["1.2.20","- uređaji i oprema za ventilaciju, klimatizaciju i grijanje uključujući alarmni sustav"]
["1.2.21","- generator/agregat s potrebnom opremom"]
["1.2.22","- oprema za videonadzor"]
["1.2.23","- oprema za detekciju tjeranja"]
["1.2.24","- lift za podizanje stoke"]
["1.2.25","-  oprema za ograđivanje"]
["1.2.26","- oprema za žetvu, sjetvu, obradu tla i zaštitu bilja"]
["1.2.27","- oprema za transport, gospodarska vozila"]
["1.2.28","- protupožarna oprema i protupožarni aparati"]
["1.2.29","- nadzemni spremnici za vodu"]
["1.2.30","- opremanje prasilišta"]
["1.2.31","- opremanje odgajališta"]
["1.2.32","- opremanje tovilišta"]
["1.2.33","- opremanje krmačarnika (odmaralište-čekalište)"]
["1.2.34","- opremanje nazimičarnika"]
["1.2.35","- opremanje nerastarnika"]
["1.2.36","- opremanje prostora za osjemenjivanje"]
["1.2.37","- oprema za prasenje"]
["1.2.38","- oprema za šišanje ovaca"]
["1.2.39","- oprema za dodatnu prehranu i opskrbu vodom prilikom boravka na otvorenom"]
["1.2.40","- strojevi i oprema za napajanje i hranjenje peradi uključujući opremu za pripremu hranidbenih smjesa "]
["1.2.41","- oprema za grijanje peradarnika («umjetne kvočke», podno grijanje, toplinski konvektori, masteri, grijanje na kruta goriva i ostala oprema za grijanje)"]
["1.2.42","- inkubatori"]
["1.2.43","- oprema za transport i ulaganje jaja"]
["1.2.44","- oprema za valenje jednodnevnih pilića (predvalionici i valionici)"]
["1.2.45","- oprema za primarnu obradu  jednodnevnih pilići, transport i otpremu jednodnevnih  pilića do farmi (kao npr. transportna kolica, transportna sredstva-vozila itd.)"]
["1.2.46","- oprema za kondicioniranje mikroklimatskih uvjeta u valionici (oprema i uređaji za ventilaciju, klimatizaciju i grijanje uključujući alarmni sustav s generatorom/agregatom)"]
["1.2.47","- oprema za izvođenje pranja i dezinfekcije valionice"]
["1.2.48","- vaga - oprema za automatsko vaganje peradi"]
["1.2.49","- oprema za izlov, utovar i transport žive peradi od peradarnika do objekta klaonice (stoj za izlov, kamioni, viličari, gajbe, kontejneri)"]
["1.2.50","- oprema za sakupljanje, označivanje, skladištenje, pranje, hlađenje, sortiranje, pakiranje i prijevoz jaja do i unutar pogona "]
["1.2.51","- oprema za držanje kokoši nesilica (obogaćeni kavezi, alternativni sustavi držanja, slobodni način držanja) "]
["1.2.52","- oprema za zaštitu domaćih životinja od divljači"]
["1.2.53","- energetske zavjese"]
["1.2.54","- ostala nespomenuta oprema"]
["2.","Zatvorenih/zaštićenih prostora i objekata za uzgoj jednogodišnjeg i višegodišnjeg bilja, sjemena i sadnog materijala i gljiva sa pripadajućom opremom i infrastrukturom u sklopu poljoprivrednog gospodarstva"]
["2.1","Građenje/rekonstrukcija"]
["2.1.1","- staklenika i plastenika za uzgoj jednogodišnjeg i višegodišnjeg bilja, sjemena i sadnog materijala, objekata za uzgoj gljiva uključujući prostor za ugradnju sustava za ventilaciju, klimatizaciju i grijanje uključujući alarmni sustav, generator/agregat, spremnike za vodu i prostore za sustav navodnjavanja (uključujući bunare), električnu, kanalizacijsku mrežu, gromobransku instalaciju"]
["2.1.2","- ostali nespomenuti prostori i objekti za uzgoj"]
["2.2","Opremanje"]
["2.2.1","- oprema za staklenike, plastenike i objekte za uzgoj gljiva"]
["2.2.2","- oprema i uređaji za navodnjavanje i gnojidbu (fertirigacija)"]
["2.2.3","- oprema za dopunsko osvjetljenje i zasjenjivanje"]
["2.2.4","- oprema i uređaji za pripremu tla prije sjetve i sadnje i supstrata (miješanje supstrata, punjenje posuda supstratom i dr.)"]
["2.2.5","- oprema i uređaji za sjetvu, sadnju i postavljanje/uklanjanje niskih tunela, malč folija, agrotekstila te sustava navodnjavanja kapanjem"]
["2.2.6","- oprema i uređaji za zaštitu bilja i sterilizaciju tla i supstrata"]
["2.2.7","- oprema za pomotehniku (npr. oprema za mehaničko prorjeđivanje, podrezivanje korijenja, malčiranje, odstranjivanje lišća)"]
["2.2.8","- oprema za povećanje koncentracije CO2"]
["2.2.9","- oprema za berbu/žetvu u zaštićenim prostorima"]
["2.2.10","- oprema i uređaji za hidroponski i akvaponski uzgoj"]
["2.2.11","- oprema za pranje, etiketiranje, pakiranje lončanica"]
["2.2.12","-  oprema za laboratorij u funkciji osnovne djelatnosti"]
["2.2.13","- oprema za sterilizaciju"]
["2.2.14","- oprema i uređaji za pogone za grijanje"]
["2.2.15","- ostala nespomenuta oprema"]
["3.","Ostalih gospodarskih objekata, upravnih prostorija s pripadajućim sadržajima, opremom i infrastrukturom, koji su u funkciji osnovne djelatnosti"]
["3.1","Građenje/rekonstrukcija"]
["3.1.1","- prostora za skladištenje/čuvanje mehanizacije "]
["3.1.2","- ostalih gospodarskih objekata, upravnih prostorija s pripadajućim sadržajima koji su u funkciji osnovne djelatnosti"]
["3.2","Opremanje"]
["3.2.1","- prostorija upravne zgrade s pripadajućim sadržajima (uredski prostori; prostorije za ovlaštenog veterinara i veterinarskog inspektora; prostorije za odmor radnika; garderobe u čistom i nečistom dijelu; pripadajući sanitarni čvorovi; prostorije za čuvanje sredstava za čišćenje, pranje i dezinfekciju i dr.)"]
["3.2.2","- ostala nespomenuta oprema"]
["4.","Objekata za skladištenje, hlađenje, čišćenje, sušenje, zamrzavanje, klasiranje i pakiranje proizvoda iz vlastite primarne poljoprivredne proizvodnje sa pripadajućom opremom i infrastrukturom"]
["4.1","Građenje/rekonstrukcija"]
["4.1.1","- objekata: za skladištenje (dugoročno čuvanje) jednogodišnjeg i višegodišnjeg bilja, uljarica, žitarica, sjemena i sadnog materijala, voća i povrća s prostorom za prijem robe, uzorkovanje, čišćenje i pranje, sušenje, podrezivanje, sortiranje, kalibriranje, pakiranje i označavanje uključujući vodovodne, plinske, električne (uključujući alarmni sustav s generatorom/agregatom) i kanalizacijske mreže, gromobranske instalacije, kolna vaga"]
["4.1.2","- mreže putova unutar farme"]
["4.1.3","- građenje objekata za upravljanje sušarom "]
["4.1.4","- ostali nespomenuti objekti"]
["4.2","Opremanje"]
["4.2.1","- oprema i uređaji za skladišne prostore/skladištenje"]
["4.2.2","- oprema za skladištenje sirovine i gotovih proizvoda sukladno zahtjevima projekta"]
["4.2.3","- uređaji i oprema za hlađenje i zamrzavanje "]
["4.2.4","- oprema za čišćenje i pranje"]
["4.2.5","- oprema za sušenje"]
["4.2.6","- linije za sortiranje i kalibriranje "]
["4.2.7","- linije za pakiranje i označavanje"]
["4.2.8","- oprema za prihvat sirovine"]
["4.2.9","- unutarnja oprema za silose"]
["4.2.10","- agregati za proizvodnju el. energije"]
["4.2.11","- vage"]
["4.2.12","- nepokretne sušare"]
["4.2.13","- ostala nespomenuta oprema"]
["5.","Novi sustavi za navodnjavanje na poljoprivrednom gospodarstvu/izvan poljoprivrednog gospodarstva za potrebe primarne proizvodnje poljoprivrednog gospodarstva (neto povećanje navodnjavanje površine) te poboljšanje postojećih sustava/opreme za navodnjavanje na poljoprivrednom gospodarstvu"]
["5.1","Građenje/rekonstrukcija"]
["5.1.1","- sustava za navodnjavanje na gospodarstvima uključujući mikroakumulacije, bušenje bunara, uređenje vodozahvata i dr. "]
["5.1.2","-  kanala za sakupljanje oborinskih i erozivnih voda sa zaštitom od procjeđivanja "]
["5.1.3","-  akumulacija za navodnjavanje sa zaštitom od procjeđivanja "]
["5.1.4","-  za hidrantski priključak za navodnjavanje i zaštitu od mraza "]
["5.2","Opremanje "]
["5.2.1","-    hidrantski priključak za navodnjavanje i zaštitu od mraza "]
["5.2.2","-    pumpe, cjevovodi, raspršivači, sustav filtracije, sustav fertirigacije, kapaljke, rolomati "]
["5.2.3","-    sustava za navodnjavanje na gospodarstvima uključujući mikroakumulacije, bušenje bunara, kanala za sakupljanje oborinskih i erozivnih voda "]
["5.2.4","-    agregati za proizvodnju el. energije "]
["5.2.5","-    ostala nespomenuta oprema "]
["6. ","Ulaganje u kupnju opreme za berbu, sortiranje i pakiranje vlastitih poljoprivrednih proizvoda "]
["6.1","-    oprema za pomoć pri berbi"]
["6.2","-    boks palete "]
["6.3","-    oprema za zaštitu usjeva od divljači"]
["6.4","-    oprema za ograđivanje nasada/usjeva"]
["6.5","-    agrometeorološka stanica, oprema za meteorološko praćenje "]
["6.6","-    ostala nespomenuta oprema "]
["7.","Ulaganje u kupnju nove poljoprivredne mehanizacije i opreme za vlastitu primarnu poljoprivrednu proizvodnju i gospodarskih vozila uključujući sektor vinogradarstva (nije prihvatljivo ulaganje u nabavu poljoprivredne mehanizacije i gospodarskih vozila isključivo u svrhu obavljanja uslužnih djelatnosti)"]
["7.1","- poljoprivredna mehanizacija"]
["7.2","- traktor"]
["7.3","- kombajn"]
["7.4","- ostala mehanizacija"]
["7.5","- poljoprivredna oprema"]
["7.6","- gospodarsko vozilo"]
["7.7","- oprema za osnovnu i dopunsku obradu tla"]
["7.8","- oprema za sjetvu i sadnju"]
["7.9","- oprema za košnju"]
["7.10","- oprema za zaštitu bilja"]
["7.11","- oprema za žetvu i berbu"]
["7.12","- oprema za transport"]
["7.13","- specijalizirana transportna vozila za prijevoz živih životinja i hrane za životinje"]
["7.14","- oprema za preciznu poljoprivredu (GPS antene, bazne stanice s pripadajućom opremom, monitori, pripadajuća oprema za pripremu traktora, sijačica, prskalica, raspodjeljivača gnojiva, kombajna, pripadajući elektronički programi (software)"]
["7.15","- atomizeri "]
["7.16","- oprema za zaštitu u voćnjacima i vinogradima"]
["7.17","- pokretne sušare"]
["7.18","- ostala nespomenuta oprema"]
["7.19","- ostala nespomenuta mehanizacija"]
["8.","Ulaganje u podizanje novih i/ili restrukturiranje postojećih višegodišnjih nasada, isključujući restrukturiranje postojećih vinograda za proizvodnju grožđa za vino"]
["8.1","Podizanje novih ili restrukturiranje postojećih višegodišnjih nasada, uključujući:\n- analizu tla,\n- pripremu terena,\n- podizanje višegodišnjeg nasada (nabava certificiranog sadnog materijala, sadnja nasada i dr.),\n- opremu za višegodišnje nasade uključujući konstrukciju nasada (stupovi, kolci, zatega, žice, žičano pletivo za ogradu, podupore, držači sadnice, vezice i dr.)"]
["8.2","- prateća infrastruktura "]
["8.3","- građenje sustava zaštite od padalina i niskih temperatura, stupovi, sidra, sajle, žica, kape, zatege, kopče, mreža, zaštite nasada od vjetra, raspršivači, crijeva i drugo "]
["8.4","- agro klimatska stanica"]
["8.5","Ulaganje u podizanje novih i/ili restrukturiranje postojećih rasadnika za proizvodnju voćnog sadnog materijala, loznih cijepova, ukrasnog drveća i grmlja\n- podizanje novih ili restrukturiranje postojećih rasadnika za proizvodnju voćnog i loznog sadnog materijala, uključujući:\n- pripremu terena,\n- opremu za rasadnike uključujući konstrukciju nasada (stupovi, kolci za iskolčavanje, zatezači, žice, žičano pletivo za ogradu, podupore, držači sadnice, vezice i dr.)"]
["8.6","strojevi, oprema i uređaji za održavanje i njegu nasada, manipulaciju u rasadniku, vađenje, skidanje i istovar sadnica, sortiranje, sanduci (ambalaža) za odlaganje snopova sadnica,"]
["8.7","skladišta i hladnjače za spremanje sadnog materijala, sortiranje, pakiranje i pripremu za tržište, higrometar za mjerenje vlažnosti u prostoru za  skladištenje i manipulaciju sadnog materijala"]
["8.8","prateće infrastrukture (pristupni putovi, rasvjeta, vodovodna i kanalizacijska mreža, elektroenergetska mreža, plinovodi, parovodi i dr.), energetskih (trafostanice, kotlovnice, pripreme vode i dr.) objekata za opskrbu postrojenja za prijem"]
["8.9","- podizanje matičnjaka (vegetativnih  i generativnih podloga  raznih voćnih vrsta, loznih podloga, plemenitih sorti vinove loze), "]
["8.10","- agro klimatska stanica"]
["8.11","- oprema za meteorološko praćenje"]
["8.12","- ograde oko matičnjaka, nasada i površina za proizvodnju sadnog materijala"]
["8.13","- ostala nespomenuta oprema za proizvodnju"]
["9.","Ulaganje u kupnju zemljišta i objekata radi realizacije projekta, do 10 % vrijednosti ukupno prihvatljivih troškova projekta (bez općih troškova), ako se ulaganje provodi sukladno važećim propisima kojima se uređuje gradnja, uz mogućnost kupnje prije podnošenja prijave projekta, ali ne prije 1. siječnja 2014. godine "]
["9.1","- kupnja zemljišta i objekata radi realizacije projekta"]
["10.","Ulaganje u prilagodbu novouvedenim standardima sukladno članku 17. Uredbe 1305/2013"]
["10.1","- prilagodba novouvedenim standardima u skladu s člankom 17. Uredbe (EU) br. 1305/2013"]
["11.","Ulaganje u uređenje i trajnije poboljšanje kvalitete poljoprivrednog zemljišta u svrhu poljoprivredne proizvodnje (privođenje poljoprivrednog zemljišta kulturi), u svrhu realizacije projekta. "]
["11.1","- krčenje jednogodišnjeg i višegodišnjeg raslinja, uklanjanje kamenja i dr."]
["11.2","- kalcifikacija i ostale mjere za poboljšanje polj. zemljišta"]
["11.3","- ostale nespomenute radnje vezane uz poboljšanje kvalitete poljoprivrednog zemljišta u svrhu poljoprivredne proizvodnje"]